[Event "Seniors-LEM-50 Sachsen-Anhalt 2024"]
[Site "Magdeburg"]
[Date "2024.07.05"]
[Round "5.10"]
[White "Schiller, Dirk"]
[Black "Buciu, Aurel-John"]
[Result "0-1"]
[ECO "D00"]
[WhiteElo "1885"]
[BlackElo "1807"]
[Annotator "NA RC"]
[PlyCount "48"]
[EventDate "2024.06.25"]
[EventType "swiss"]
[EventCountry "GER"]
[SourceTitle "playchess.com"]
[Source "ChessBase"]
[SourceQuality "1"]
[TimeControl "40/5400+30:1800+30"]

1. d4 {[%emt 1:31:00]} d5 {[%emt 1:31:00]} 2. Bf4 {[%emt 0:00:30]} Bf5 {[%emt 0:00:30]} 3. e3 {[%emt 0:00:30]} Nf6 {[%emt 0:00:30]} 4. Nc3 {[%emt 0:00:30]} c6 {[%emt 0:00:30]} 5. f3 {[%emt 0:00:30]} e6 {[%emt 0:00:30]} 6. g4 {[%emt 0:00:30] D00: 1 d4 d5: Unusual lines.} Bg6 {[%emt 0:00:30]} 7. Bg2 {[%emt 0:00:30]} Bd6 {[%emt 0:00:30]} 8. Nge2 {[%emt 0:00:30]} Qc7 {[%emt 0:00:30]} 9. Qd2 {[%emt 0:00:30]} Nbd7 {[%emt 0:00:30]} 10. Bxd6 {[%emt 0:00:30]} Qxd6 {[%emt 0:00:30]} 11. h4 {[%emt 0:00:30]} h5 {[%emt 0:00:30]} 12. g5 {[%emt 0:00:30]} Ng8 {[%emt 0:00:30]} 13. Nf4 {[%emt 0:00:30]} Ne7 {[%emt 0:00:30]} 14. O-O-O {[%emt 0:00:30]} e5 {[%emt 0:00:30]} 15. Nxg6 {[%emt 0:00:30]} Nxg6 {[%emt 0:00:30]} 16. dxe5 {[%emt 0:00:30]} Ndxe5 {[%emt 0:00:30]} 17. e4 {[%emt 0:00:30]} Nc4 {[%emt 0:00:30]} 18. Qf2 $2 {[%emt 0:00:30]} (18. Qd4 $1 $11) 18... Qb4 {[%emt 0:00:30]} 19. Rde1 $19 {[%emt 0:00:30]} (19. Na4 $142 Qxa4 20. a3) 19... Qxb2+ {[%emt 0:00:30]} 20. Kd1 Nf4 21. exd5+ Kd8 22. Ne2 Nxg2 {[%emt 0:01:30]} 23. Nc1 {[%emt 0:02:00]} Nxe1 {[%emt 0:00:30]} 24. Rxe1 {[%emt 0:00:30]} Re8 {[%emt 0:00:30]} 0-1

[Event "Seniors-LEM-50 Sachsen-Anhalt 2024"]
[Site "Magdeburg"]
[Date "2024.07.05"]
[Round "5.12"]
[White "Langner, Hans-Rainer"]
[Black "Gaertig, Johannes"]
[Result "1/2-1/2"]
[ECO "C01"]
[WhiteElo "1730"]
[BlackElo "1687"]
[Annotator "NA RC"]
[PlyCount "114"]
[EventDate "2024.06.25"]
[EventType "swiss"]
[EventCountry "GER"]
[SourceTitle "playchess.com"]
[Source "ChessBase"]
[SourceQuality "1"]
[TimeControl "40/5400+30:1800+30"]

1. d4 {[%emt 0:00:08]} e6 {[%emt 0:01:08]} 2. e4 {[%emt 0:02:11]} a6 {[%emt 0:01:30]} 3. Nf3 {[%emt 0:00:52]} b5 {[%emt 0:00:47]} 4. c4 {[%emt 0:04:04]} c6 {[%emt 0:00:26]} 5. c5 {[%emt 0:04:40]} h6 {[%emt 0:01:30]} 6. Be2 {[%emt 0:00:17]} Nf6 {[%emt 0:00:14]} 7. Qc2 {[%emt 0:01:03]} Be7 {[%emt 0:03:33]} 8. Nbd2 {[%emt 0:00:53]} Bb7 {[%emt 0:01:32]} 9. e5 {[%emt 0:00:55]} Nd5 {[%emt 0:00:45]} 10. O-O {[%emt 0:01:29]} a5 {[%emt 0:01:12]} 11. Ne4 {[%emt 0:02:21]} Na6 {[%emt 0:03:59]} 12. a3 {[%emt 0:01:06]} Nac7 {[%emt 0:01:03]} 13. Bd2 {[%emt 0:01:33]} Ba6 {[%emt 0:06:06]} 14. Nd6+ {[%emt 0:01:48]} Bxd6 {[%emt 0:00:15]} 15. exd6 {[%emt 0:00:11]} b4 {[%emt 0:00:53]} 16. Bxa6 {[%emt 0:02:44]} Nxa6 {[%emt 0:00:21]} 17. Ne5 {[%emt 0:03:08]} O-O {[%emt 0:00:20]} 18. f4 {[%emt 0:00:47]} f5 {[%emt 0:09:20]} 19. Rf3 {[%emt 0:01:44]} Ra7 {[%emt 0:05:15]} 20. Rg3 {[%emt 0:01:23]} Rf6 {[%emt 0:03:33]} 21. Qd1 {[%emt 0:01:23]} Qe8 {[%emt 0:00:29]} 22. Nc4 {[%emt 0:03:12]} Nb8 {[%emt 0:03:20]} 23. axb4 {[%emt 0:00:42]} a4 {[%emt 0:11:11]} 24. Rxa4 {[%emt 0:03:36]} Rxa4 {[%emt 0:02:12]} 25. Qxa4 {[%emt 0:00:35]} Rf8 {[%emt 0:00:57]} 26. b5 {[%emt 0:00:44]} cxb5 {[%emt 0:01:44]} 27. Qxb5 {[%emt 0:00:24]} Qh5 {[%emt 0:00:51]} 28. Rf3 {[%emt 0:02:53]} Qe8 {[%emt 0:00:31]} 29. Ne5 {[%emt 0:01:11]} Qc8 {[%emt 0:07:08]} 30. b4 {[%emt 0:02:57]} Nc6 {[%emt 0:01:21]} 31. Qc4 {[%emt 0:06:08]} Nxe5 {[%emt 0:04:39]} 32. dxe5 {[%emt 0:00:29]} Qa8 {[%emt 0:00:28]} 33. Kf2 {[%emt 0:03:20]} Rb8 {[%emt 0:01:36]} 34. b5 {[%emt 0:01:11]} Qa1 {[%emt 0:00:33]} 35. Rb3 {[%emt 0:09:16]} Qa2 {[%emt 0:02:10]} 36. Ke1 {[%emt 0:01:53]} Qa1+ {[%emt 0:01:14]} 37. Qc1 {[%emt 0:00:33]} Qd4 {[%emt 0:00:32]} 38. Be3 {[%emt 0:03:35]} Nxe3 {[%emt 0:02:37]} 39. Qxe3 {[%emt 0:01:56]} Qa1+ {[%emt 0:02:07]} 40. Kf2 {[%emt 0:00:35]} Qa2+ {[%emt 0:01:41]} 41. Kf3 {[%emt 0:30:35]} Qa8+ {[%emt 0:30:29]} 42. Kg3 {[%emt 0:00:47]} g6 {[%emt 0:02:03]} 43. b6 {[%emt 0:02:18]} Qc6 {[%emt 0:00:37]} 44. h3 {[%emt 0:01:46]} Kf7 {[%emt 0:00:52]} 45. Rc3 {[%emt 0:02:32]} h5 {[%emt 0:02:08]} 46. h4 {[%emt 0:00:29]} Ke8 {[%emt 0:02:38]} 47. Kf2 {[%emt 0:00:30]} Ra8 {[%emt 0:00:18]} 48. Rc2 {[%emt 0:02:37]} Ra4 {[%emt 0:00:22]} 49. Rb2 {[%emt 0:00:42]} Re4 {[%emt 0:00:29]} 50. b7 {[%emt 0:08:38]} Rxe3 {[%emt 0:02:42]} 51. b8=Q+ {[%emt 0:00:27]} Kf7 {[%emt 0:00:13]} 52. Kxe3 {[%emt 0:00:15]} Qxc5+ {[%emt 0:00:18]} 53. Kf3 {[%emt 0:03:58]} Qc3+ {[%emt 0:01:02]} 54. Kf2 {[%emt 0:02:08]} Qd4+ {[%emt 0:00:35]} 55. Kf1 {[%emt 0:01:22]} Qxf4+ {[%emt 0:00:10]} 56. Rf2 {[%emt 0:00:57]} Qc1+ {[%emt 0:00:41]} 57. Ke2 {[%emt 0:00:25]} Qc4+ {[%emt 0:00:35]} 1/2-1/2

[Event "Seniors-LEM-50 Sachsen-Anhalt 2024"]
[Site "Magdeburg"]
[Date "2024.07.05"]
[Round "5.13"]
[White "Scheunemann, Uwe"]
[Black "Leib, Britta"]
[Result "1/2-1/2"]
[ECO "C01"]
[WhiteElo "1764"]
[BlackElo "1920"]
[Annotator "NA RC"]
[PlyCount "47"]
[EventDate "2024.06.25"]
[EventType "swiss"]
[EventCountry "GER"]
[SourceTitle "playchess.com"]
[Source "ChessBase"]
[SourceQuality "1"]
[TimeControl "40/5400+30:1800+30"]

1. e4 {[%emt 0:00:06]} e6 {[%emt 0:00:07]} 2. Nc3 {[%emt 0:00:41]} d5 {[%emt 0:00:44]} 3. exd5 {[%emt 0:01:27]} exd5 {[%emt 0:00:28]} 4. d4 {[%emt 0:00:08]} Nf6 {[%emt 0:01:38]} 5. Nf3 {[%emt 0:00:31]} Be7 {[%emt 0:01:32]} 6. Be2 {[%emt 0:00:15]} O-O {[%emt 0:02:37] C01: French: Exchange Variation.} 7. O-O {[%emt 0:00:19]} Bg4 {[%emt 0:09:17]} 8. Ne5 {[%emt 0:05:08]} Bxe2 {[%emt 0:19:03]} 9. Nxe2 {[%emt 0:00:41]} Re8 {[%emt 0:09:32]} 10. Ng3 {[%emt 0:03:35]} g6 {[%emt 0:01:54]} 11. Re1 {[%emt 0:01:23]} Nbd7 {[%emt 0:06:05]} 12. f4 {[%emt 0:03:17]} (12. Qf3 $5) 12... c5 {[%emt 0:06:21]} 13. c3 {[%emt 0:00:36]} cxd4 {[%emt 0:01:17]} 14. cxd4 {[%emt 0:00:28]} Rc8 {[%emt 0:02:59]} 15. Qb3 {[%emt 0:03:00]} Nb6 {[%emt 0:02:15]} 16. Bd2 {[%emt 0:02:06]} Nc4 {[%emt 0:01:27]} 17. Bc3 {[%emt 0:01:53]} Qb6 {[%emt 0:02:50]} 18. Qxb6 {[%emt 0:08:47]} Nxb6 {[%emt 0:00:52]} 19. Rac1 $15 {[%emt 0:03:42]} Bd6 {[%emt 0:02:39]} 20. h3 {[%emt 0:05:41]} Nfd7 {[%emt 0:03:04]} 21. Nd3 {[%emt 0:02:51]} Na4 {[%emt 0:04:04]} 22. Bd2 {[%emt 0:01:10]} Kg7 {[%emt 0:02:10]} 23. b3 {[%emt 0:04:22]} Nab6 {[%emt 0:01:09]} 24. Kf2 {[%emt 0:00:46]} 1/2-1/2

[Event "Seniors-LEM-50 Sachsen-Anhalt 2024"]
[Site "Magdeburg"]
[Date "2024.07.05"]
[Round "5.14"]
[White "Giesenberg, Angela"]
[Black "Schoknecht, Sabine"]
[Result "0-1"]
[ECO "A00"]
[WhiteElo "1827"]
[BlackElo "1836"]
[Annotator "NA RC"]
[PlyCount "67"]
[EventDate "2024.06.25"]
[EventType "swiss"]
[EventCountry "GER"]
[SourceTitle "playchess.com"]
[Source "ChessBase"]
[SourceQuality "1"]
[TimeControl "40/5400+30:1800+30"]

1. g3 {[%emt 0:00:03]} Nc6 {[%emt 0:00:28]} 2. Bg2 {[%emt 0:00:08]} e6 {[%emt 0:00:10]} 3. d3 {[%emt 0:00:20]} Be7 {[%emt 0:00:19]} 4. e4 {[%emt 0:01:12]} d6 {[%emt 0:00:25]} 5. c3 {[%emt 0:01:53]} Nf6 {[%emt 0:00:52]} 6. Ne2 {[%emt 0:03:33]} h6 {[%emt 0:00:22]} 7. Nd2 {[%emt 0:06:59]} Ng4 {[%emt 0:02:43]} 8. h3 {[%emt 0:03:45]} Nf6 {[%emt 0:01:49]} 9. d4 {[%emt 0:05:52]} Nh7 {[%emt 0:01:51]} 10. f4 {[%emt 0:02:38]} g5 {[%emt 0:04:59]} 11. Nf3 {[%emt 0:09:17]} Rg8 {[%emt 0:05:01]} 12. Qc2 {[%emt 0:03:07]} f6 {[%emt 0:06:47]} 13. Be3 {[%emt 0:05:44]} gxf4 {[%emt 0:08:02]} 14. Bxf4 {[%emt 0:01:06]} Ng5 {[%emt 0:01:55]} 15. O-O-O {[%emt 0:05:28]} Bf8 {[%emt 0:05:59]} 16. h4 {[%emt 0:01:39]} Nf7 {[%emt 0:02:33]} 17. Kb1 {[%emt 0:06:39]} Bd7 {[%emt 0:00:20]} 18. e5 {[%emt 0:04:18]} d5 {[%emt 0:00:57]} 19. exf6 {[%emt 0:01:57]} Qxf6 {[%emt 0:02:44]} 20. Bxc7 {[%emt 0:01:27]} Nd6 {[%emt 0:01:35]} 21. Rhf1 {[%emt 0:00:51]} Qg7 {[%emt 0:01:05]} 22. Rde1 {[%emt 0:06:24]} Rc8 {[%emt 0:03:44]} 23. Bxd6 {[%emt 0:02:14]} Bxd6 {[%emt 0:00:11]} 24. Nfg1 {[%emt 0:00:11]} Bxg3 {[%emt 0:07:56]} 25. Nxg3 {[%emt 0:00:16]} Qxg3 {[%emt 0:01:06]} 26. Bxd5 {[%emt 0:00:28]} Kd8 {[%emt 0:08:24]} 27. Bxe6 {[%emt 0:02:27]} Nxd4 {[%emt 0:02:02]} 28. Qd2 {[%emt 0:07:34]} Qg6+ {[%emt 0:01:29]} 29. Kc1 {[%emt 0:03:00]} Nxe6 {[%emt 0:01:08]} 30. Nf3 {[%emt 0:00:21]} Nc5 {[%emt 0:07:50]} 31. Ne5 {[%emt 0:02:08]} Qh7 {[%emt 0:04:32]} 32. Rf7 {[%emt 0:01:33]} Rg7 {[%emt 0:00:33]} 33. Qd6 {[%emt 0:06:46]} Rxf7 {[%emt 0:00:54]} 34. Nc6+ {[%emt 0:00:23]} 0-1

[Event "Seniors-LEM-50 Sachsen-Anhalt 2024"]
[Site "Magdeburg"]
[Date "2024.07.05"]
[Round "5.15"]
[White "Ehrich, Dieter"]
[Black "Bachmann, Sylvia"]
[Result "1-0"]
[ECO "A38"]
[WhiteElo "1719"]
[BlackElo "1768"]
[Annotator "NA RC"]
[PlyCount "105"]
[EventDate "2024.06.25"]
[EventType "swiss"]
[EventCountry "GER"]
[SourceTitle "playchess.com"]
[Source "ChessBase"]
[SourceQuality "1"]
[TimeControl "40/5400+30:1800+30"]

1. c4 {[%emt 0:00:16]} Nf6 {[%emt 0:00:12]} 2. g3 {[%emt 0:00:17]} g6 {[%emt 0:00:11]} 3. Bg2 {[%emt 0:00:18]} Bg7 {[%emt 0:00:06]} 4. Nf3 {[%emt 0:00:21]} O-O {[%emt 0:01:41]} 5. Nc3 {[%emt 0:00:23]} d6 {[%emt 0:00:35]} 6. O-O {[%emt 0:00:34]} c5 {[%emt 0:00:54]} 7. d3 {[%emt 0:01:11]} Nc6 {[%emt 0:01:14]} 8. a3 {[%emt 0:05:00]} a5 {[%emt 0:01:50]} 9. Rb1 {[%emt 0:00:36]} Nh5 {[%emt 0:01:52]} 10. h3 {[%emt 0:03:16]} f5 {[%emt 0:00:25]} 11. Ng5 {[%emt 0:03:03]} h6 {[%emt 0:00:29]} 12. Bd5+ {[%emt 0:01:38]} Kh8 {[%emt 0:02:05]} 13. Nf7+ {[%emt 0:00:39]} Rxf7 {[%emt 0:00:11]} 14. Bxf7 {[%emt 0:00:13]} Kh7 {[%emt 0:00:21]} 15. Bd5 {[%emt 0:02:18]} e5 {[%emt 0:00:41]} 16. Bf3 {[%emt 0:03:00]} Nf6 {[%emt 0:01:32]} 17. Nd5 {[%emt 0:01:37]} Be6 {[%emt 0:01:37]} 18. Nxf6+ {[%emt 0:04:32]} Bxf6 {[%emt 0:00:58]} 19. Bg2 {[%emt 0:03:53]} Qd7 {[%emt 0:00:41]} 20. Kh2 {[%emt 0:00:58]} g5 {[%emt 0:03:36]} 21. e3 {[%emt 0:08:43]} Rd8 {[%emt 0:05:28]} 22. b3 {[%emt 0:04:48]} Kg6 {[%emt 0:03:53]} 23. Bb2 {[%emt 0:04:22]} h5 {[%emt 0:02:37]} 24. f4 {[%emt 0:04:57]} g4 {[%emt 0:00:43]} 25. Bd5 {[%emt 0:01:24]} Rh8 {[%emt 0:02:06]} 26. h4 {[%emt 0:05:00]} Re8 {[%emt 0:14:23]} 27. Qc2 {[%emt 0:05:03]} exf4 {[%emt 0:11:14]} 28. exf4 {[%emt 0:00:38]} Bxb2 {[%emt 0:01:11]} 29. Bxc6 {[%emt 0:02:57]} Qxc6 {[%emt 0:00:23]} 30. Qxb2 {[%emt 0:01:24]} d5 {[%emt 0:00:26]} 31. Rbe1 {[%emt 0:05:51]} d4 {[%emt 0:02:50]} 32. Rf2 {[%emt 0:04:40]} Kf6 {[%emt 0:00:33]} 33. Qe2 {[%emt 0:01:32]} Qd6 {[%emt 0:03:31]} 34. Qd2 {[%emt 0:06:19]} b6 {[%emt 0:01:02]} 35. Rfe2 {[%emt 0:00:36]} Qc6 {[%emt 0:00:41]} 36. Re5 {[%emt 0:01:14]} Qf3 {[%emt 0:06:07]} 37. Qg2 {[%emt 0:04:49]} Qxg2+ {[%emt 0:07:15]} 38. Kxg2 {[%emt 0:00:13]} Re7 {[%emt 0:00:22]} 39. Kf1 {[%emt 0:00:51]} Re8 {[%emt 0:00:16]} 40. R1e2 {[%emt 0:00:34]} Re7 {[%emt 0:00:27]} 41. Ke1 {[%emt 0:30:14]} Re8 {[%emt 0:30:32]} 42. Kd2 {[%emt 0:00:28]} Re7 {[%emt 0:00:24]} 43. b4 {[%emt 0:05:47]} cxb4 {[%emt 0:01:15]} 44. axb4 {[%emt 0:00:33]} a4 {[%emt 0:01:33]} 45. Kc2 {[%emt 0:02:46]} a3 {[%emt 0:04:13]} 46. Kb1 {[%emt 0:01:45]} b5 {[%emt 0:00:26]} 47. Rxe6+ {[%emt 0:00:00]} Rxe6 {[%emt 0:00:00]} 48. Rxe6+ {[%emt 0:00:00]} Kxe6 {[%emt 0:00:00]} 49. cxb5 {[%emt 0:00:00]} Kd6 {[%emt 0:00:00]} 50. Ka2 {[%emt 0:00:00]} Kc7 {[%emt 0:00:00]} 51. Kxa3 {[%emt 0:00:00]} Kb7 {[%emt 0:00:00]} 52. Kb3 {[%emt 0:00:00]} Kb6 {[%emt 0:00:00]} 53. Kc4 {[%emt 0:00:00]} 1-0

[Event "Seniors-LEM-50 Sachsen-Anhalt 2024"]
[Site "Magdeburg"]
[Date "2024.07.05"]
[Round "5.16"]
[White "Wahrenberg, Ralf"]
[Black "Bertram, Marina"]
[Result "1-0"]
[ECO "D02"]
[WhiteElo "1873"]
[BlackElo "1564"]
[Annotator "NA RC"]
[PlyCount "55"]
[EventDate "2024.06.25"]
[EventType "swiss"]
[EventCountry "GER"]
[SourceTitle "playchess.com"]
[Source "ChessBase"]
[SourceQuality "1"]
[TimeControl "40/5400+30:1800+30"]

1. d4 {[%emt 0:00:02]} d5 {[%emt 0:00:07]} 2. Nf3 {[%emt 0:00:11]} Nf6 {[%emt 0:00:48]} 3. Bf4 {[%emt 0:00:11]} e6 {[%emt 0:00:29]} 4. e3 {[%emt 0:00:12]} Nc6 {[%emt 1:31:06]} 5. c3 {[%emt 0:00:31]} a6 {[%emt 0:00:00]} 6. Nbd2 {[%emt 0:00:59]} Be7 {[%emt 0:00:00]} 7. h3 {[%emt 0:02:57]} O-O {[%emt 0:00:00]} 8. Bd3 {[%emt 0:00:08]} g6 {[%emt 0:00:00]} 9. Ne5 {[%emt 0:05:05]} Ne8 {[%emt 0:00:00]} 10. Bh6 {[%emt 0:04:48]} Ng7 {[%emt 0:00:00]} 11. Ndf3 {[%emt 0:00:20]} Bf6 {[%emt 0:00:00]} 12. Qc2 {[%emt 0:02:26]} Qe8 {[%emt 0:00:00]} 13. h4 {[%emt 0:02:22]} Ne7 {[%emt 0:00:00]} 14. h5 {[%emt 0:03:45]} Nef5 {[%emt 0:00:00]} 15. hxg6 {[%emt 0:05:48]} fxg6 {[%emt 0:00:00]} 16. g4 {[%emt 0:07:09]} Bxe5 {[%emt 0:00:00]} 17. Nxe5 {[%emt 0:01:33]} Ne7 {[%emt 0:00:00]} 18. O-O-O {[%emt 0:02:38]} c6 {[%emt 0:00:00]} 19. Rh2 {[%emt 0:03:03]} b5 {[%emt 0:00:00]} 20. Rdh1 {[%emt 0:00:14]} Rf6 {[%emt 0:00:00]} 21. Bxg7 {[%emt 0:06:59]} Kxg7 {[%emt 0:00:00]} 22. Rxh7+ {[%emt 0:00:02]} Kf8 {[%emt 0:00:00]} 23. Rh8+ {[%emt 0:00:48]} Ng8 {[%emt 0:00:00]} 24. Nxg6+ {[%emt 0:00:39]} Rxg6 25. Bxg6 {[%emt 0:00:03]} Qd8 {[%emt 0:00:00]} 26. R1h7 {[%emt 0:00:23]} Qf6 {[%emt 0:00:00]} 27. g5 {[%emt 0:05:33]} Qxg5 {[%emt 0:00:00]} 28. Rf7+ {[%emt 0:00:10]} 1-0

[Event "Seniors-LEM-50 Sachsen-Anhalt 2024"]
[Site "Magdeburg"]
[Date "2024.07.06"]
[Round "6.1"]
[White "Fabig, Holger"]
[Black "Puschendorf, Steffen"]
[Result "1-0"]
[ECO "B25"]
[WhiteElo "1969"]
[BlackElo "2067"]
[Annotator "NA RC"]
[PlyCount "95"]
[EventDate "2024.06.25"]
[EventType "swiss"]
[EventCountry "GER"]
[SourceTitle "playchess.com"]
[Source "ChessBase"]
[SourceQuality "1"]
[TimeControl "40/5400+30:1800+30"]

1. e4 {[%emt 0:00:03]} c5 {[%emt 0:00:05]} 2. Nc3 {[%emt 0:00:09]} Nc6 {[%emt 0:00:10]} 3. g3 {[%emt 0:00:09]} g6 {[%emt 0:00:16]} 4. Bg2 {[%emt 0:00:04]} Bg7 {[%emt 0:00:07]} 5. d3 {[%emt 0:00:08]} d6 {[%emt 0:00:16]} 6. Be3 {[%emt 0:00:20]} Rb8 {[%emt 0:00:16]} 7. Qd2 {[%emt 0:00:58]} b5 {[%emt 0:00:27]} 8. f4 {[%emt 0:00:34]} b4 {[%emt 0:00:15]} 9. Nd1 {[%emt 0:00:09]} e6 {[%emt 0:00:21]} 10. Nf3 {[%emt 0:00:18]} Nge7 {[%emt 0:00:17]} 11. O-O {[%emt 0:00:14]} O-O {[%emt 0:00:10]} 12. c3 {[%emt 0:11:07] B25: Closed Sicilian: 3 g3, lines without early Be3.} bxc3 {[%emt 0:01:06]} 13. bxc3 {[%emt 0:00:03]} Qa5 {[%emt 0:00:22]} 14. Rc1 {[%emt 0:02:29]} Ba6 {[%emt 0:18:28]} 15. Re1 {[%emt 0:02:00]} Qa3 {[%emt 0:01:16]} 16. g4 {[%emt 0:07:28]} d5 {[%emt 0:13:06]} 17. e5 {[%emt 0:02:44]} Rfd8 {[%emt 0:10:36]} 18. d4 {[%emt 0:07:15]} cxd4 {[%emt 0:10:58]} 19. Nxd4 {[%emt 0:05:01]} Bc4 {[%emt 0:02:31]} 20. Rc2 {[%emt 0:05:41]} Rb7 {[%emt 0:07:21]} 21. Bf1 {[%emt 0:02:25]} Na5 {[%emt 0:03:55]} 22. Qf2 {[%emt 0:01:24]} Qa4 {[%emt 0:10:34]} 23. f5 {[%emt 0:01:40]} exf5 {[%emt 0:02:23]} 24. gxf5 {[%emt 0:00:04]} Nxf5 $2 {[%emt 0:00:38]} (24... Bxe5 $11 {and Black is okay.} 25. fxg6 Nxg6) 25. Nxf5 {[%emt 0:00:31]} gxf5 {[%emt 0:00:04] [#]} 26. Bd4 $2 {[%emt 0:01:34]} (26. Qh4 $1 $18 {[%cal Rh4d8]} Re8 27. Rg2) 26... Nc6 {[%emt 0:01:37]} 27. Bh3 {[%emt 0:00:40]} Bd3 {[%emt 0:01:41]} 28. Rd2 {[%emt 0:01:49]} Be4 {[%emt 0:01:21]} 29. Bxf5 {[%emt 0:03:06]} Bxf5 {[%emt 0:04:05]} 30. Qxf5 {[%emt 0:00:02]} Ne7 {[%emt 0:00:43] [#]} 31. Qg4 $16 {[%emt 0:02:03]} Ng6 {[%emt 0:01:19]} 32. e6 {[%emt 0:17:51]} fxe6 {[%emt 0:00:46]} 33. Qxe6+ {[%emt 0:00:20]} Kh8 {[%emt 0:01:10]} 34. Ne3 {[%emt 0:08:17]} Qd7 {[%emt 0:05:53]} 35. Bxg7+ {[%emt 0:05:46]} Qxg7 {[%emt 0:00:16]} 36. Nf5 {[%emt 0:03:12]} Qxc3 {[%emt 0:01:30]} 37. Qe8+ {[%emt 0:01:32]} Nf8 {[%emt 0:00:58]} 38. Qxd8 {[%emt 0:00:13]} Qc5+ {[%emt 0:00:59]} 39. Rf2 {[%emt 0:01:04]} Rf7 {[%emt 0:00:20]} 40. Ref1 {[%emt 0:00:38]} Rxf5 {[%emt 0:00:16]} 41. Qh4 {[%emt 0:32:32]} Ng6 {[%emt 0:03:31]} 42. Qg3 {[%emt 0:00:00]} Qd4 {[%emt 0:02:35]} 43. Kh1 {[%emt 0:00:00]} Rxf2 {[%emt 0:03:00]} 44. Qxf2 {[%emt 0:00:00]} Qe4+ {[%emt 0:04:14]} 45. Qf3 {[%emt 0:00:00]} Qe6 {[%emt 0:00:59]} 46. Qf6+ {[%emt 0:00:00]} Qxf6 {[%emt 0:00:11]} 47. Rxf6 {[%emt 0:00:00]} Kg7 {[%emt 0:00:50]} 48. Ra6 {[%emt 0:00:00]} 1-0

[Event "Seniors-LEM-50 Sachsen-Anhalt 2024"]
[Site "Magdeburg"]
[Date "2024.07.06"]
[Round "6.3"]
[White "Frankenberger, Ralf"]
[Black "Korte, Markus"]
[Result "0-1"]
[ECO "D32"]
[WhiteElo "1939"]
[BlackElo "1895"]
[Annotator "NA RC"]
[PlyCount "46"]
[EventDate "2024.06.25"]
[EventType "swiss"]
[EventCountry "GER"]
[SourceTitle "playchess.com"]
[Source "ChessBase"]
[SourceQuality "1"]
[TimeControl "40/5400+30:1800+30"]

1. d4 {[%emt 0:00:10]} d5 {[%emt 0:00:26]} 2. c4 {[%emt 0:00:06]} e6 {[%emt 0:00:30]} 3. Nc3 {[%emt 0:01:49]} c5 {[%emt 0:00:08]} 4. cxd5 {[%emt 0:01:08]} exd5 {[%emt 0:00:33]} 5. dxc5 {[%emt 0:00:48]} d4 {[%emt 0:01:27]} 6. Ne4 {[%emt 0:02:47]} Nc6 {[%emt 0:01:10]} 7. e3 {[%emt 0:02:36]} Bf5 {[%emt 0:04:29]} 8. Ng3 {[%emt 0:10:47]} Bg6 {[%emt 0:05:18]} 9. Nf3 {[%emt 0:09:12]} (9. b4 $1 $14) 9... Bxc5 {[%emt 0:14:35]} 10. Qb3 {[%emt 0:27:59]} d3 {[%emt 0:08:15]} 11. a3 {[%emt 0:03:06]} Bb6 {[%emt 0:05:34]} 12. e4 {[%emt 0:04:56]} Nf6 {[%emt 0:07:29]} 13. Bxd3 {[%emt 0:01:06]} Ba5+ {[%emt 0:08:15]} 14. Ke2 {[%emt 0:02:37]} Qe7 {[%emt 0:07:30]} 15. Bg5 {[%emt 0:01:08]} O-O $14 {[%emt 0:03:42]} (15... h6 $11 16. Bh4 Bh7 17. Bxf6 Qxf6) 16. Rhd1 {[%emt 0:03:15]} h6 {[%emt 0:04:22]} 17. Bh4 {[%emt 0:01:37]} Bb6 {[%emt 0:02:38]} 18. Kf1 {[%emt 0:02:41]} Rac8 {[%emt 0:05:17]} 19. Rac1 {[%emt 0:01:35]} Na5 {[%emt 0:07:44]} 20. Qb5 {[%emt 0:00:48]} Qe6 {[%emt 0:02:11]} 21. Bxf6 {[%emt 0:03:50]} Rxc1 {[%emt 0:01:51]} 22. Rxc1 {[%emt 0:00:08]} Qxf6 {[%emt 0:01:34]} 23. Ne5 {[%emt 0:00:41]} Qxf2# {[%emt 0:00:08]} 0-1

[Event "Seniors-LEM-50 Sachsen-Anhalt 2024"]
[Site "Magdeburg"]
[Date "2024.07.06"]
[Round "6.4"]
[White "Kottke, Steffen"]
[Black "Richter, Juergen"]
[Result "1-0"]
[ECO "C50"]
[WhiteElo "1933"]
[BlackElo "1841"]
[Annotator "RC"]
[PlyCount "41"]
[EventDate "2024.06.25"]
[EventType "swiss"]
[EventCountry "GER"]
[SourceTitle "playchess.com"]
[Source "ChessBase"]
[SourceQuality "1"]
[TimeControl "40/5400+30:1800+30"]

1. e4 {[%emt 0:00:05]} e5 {[%emt 0:00:13]} 2. Nf3 {[%emt 0:00:09]} Nc6 {[%emt 0:00:23]} 3. Bc4 {[%emt 0:00:16]} Nf6 {[%emt 0:00:11]} 4. Nc3 {[%emt 0:00:50]} Be7 {[%emt 0:00:43]} 5. O-O {[%emt 0:00:36]} d6 {[%emt 0:00:23]} 6. h3 {[%emt 0:03:17]} h6 {[%emt 0:00:17]} 7. d4 {[%emt 0:01:40]} O-O {[%emt 0:00:29]} 8. a3 {[%emt 0:10:15]} a5 {[%emt 0:00:11]} 9. dxe5 {[%emt 0:01:29]} dxe5 {[%emt 0:01:48]} 10. Qe2 {[%emt 0:04:02]} Bc5 {[%emt 0:00:25]} 11. Rd1 {[%emt 0:09:46]} Qe7 {[%emt 0:00:23]} 12. Be3 {[%emt 0:01:12]} Be6 {[%emt 0:01:11]} 13. Nd5 {[%emt 0:02:37]} Bxd5 {[%emt 0:01:22]} 14. exd5 {[%emt 0:04:24]} e4 {[%emt 0:01:35]} 15. Nh4 {[%emt 0:04:08]} Bxe3 {[%emt 0:01:48]} 16. dxc6 {[%emt 0:00:52]} Bg5 {[%emt 0:00:19]} 17. Ng6 {[%emt 0:00:16]} Qc5 {[%emt 0:01:01]} 18. cxb7 {[%emt 0:00:50]} Rab8 {[%emt 0:00:55]} 19. Nxf8 {[%emt 0:00:31]} e3 {[%emt 0:00:20]} 20. f4 {[%emt 0:09:47]} Bxf4 {[%emt 0:00:45]} 21. Nd7 {[%emt 0:00:21]} 1-0